[Event "XVII MetLife Najdorf Open 2017"]
[Site "Warsaw"]
[Date "2017.07.15"]
[Round "7"]
[White "Baltic, Fatih"]
[Black "Bednarek, Sylwester"]
[Result "0-1"]
[ECO "C18"]
[WhiteElo "2210"]
[BlackElo "2309"]
[Annotator "RC"]
[PlyCount "60"]
[EventDate "2017.??.??"]
[EventType "swiss"]
[EventCountry "POL"]
[SourceTitle "playchess.com"]
[Source "ChessBase"]
[SourceQuality "1"]
[TimeControl "40/5400+30:1800+30"]

1. e4 {[%emt 0:00:00]} e6 {[%emt 0:03:19]} 2. d4 {[%emt 0:01:50]} d5 {[%emt 0:00:03]} 3. Nc3 {[%emt 0:05:16]} Bb4 {[%emt 0:00:51]} 4. e5 {[%emt 0:03:04]} c5 {[%emt 0:00:02]} 5. a3 {[%emt 0:00:56]} Bxc3+ {[%emt 0:00:04]} 6. bxc3 {[%emt 0:00:41]} Qa5 {[%emt 0:00:02]} 7. Bd2 {[%emt 0:02:29]} Qa4 {[%emt 0:00:02]} 8. Qg4 {[%emt 0:01:46]} Kf8 {[%emt 0:00:17]} 9. Qd1 {[%emt 0:00:04]} b6 {[%emt 0:00:22]} 10. Nf3 {[%emt 0:01:54]} Ne7 {[%emt 0:00:12]} 11. Qb1 {[%emt 0:10:41]} Ba6 {[%emt 0:03:40]} 12. dxc5 {[%emt 0:08:43]} bxc5 {[%emt 0:13:16]} 13. Qb3 {[%emt 0:05:55]} Qxb3 {[%emt 0:05:07]} 14. cxb3 {[%emt 0:01:01]} Bxf1 {[%emt 0:00:03]} 15. Rxf1 {[%emt 0:02:32]} Nd7 {[%emt 0:00:09]} 16. b4 {[%emt 0:01:06]} f6 {[%emt 0:07:48]} 17. O-O-O {[%emt 0:03:02]} Kf7 {[%emt 0:00:41]} 18. Rfe1 {[%emt 0:01:34]} a5 {[%emt 0:06:05]} 19. Kb2 {[%emt 0:06:17]} Rhb8 {[%emt 0:00:20]} 20. Rc1 {[%emt 0:00:41]} Nb6 {[%emt 0:01:14]} 21. Kc2 {[%emt 0:03:13]} axb4 {[%emt 0:12:51]} 22. axb4 {[%emt 0:00:22]} Ra2+ {[%emt 0:00:08]} 23. Kd3 {[%emt 0:00:44]} Nc4 {[%emt 0:04:56]} 24. Ra1 {[%emt 0:04:15]} Rba8 {[%emt 0:22:52]} 25. Rxa2 {[%emt 0:00:54]} Rxa2 {[%emt 0:00:02]} 26. bxc5 {[%emt 0:05:05]} Nc6 {[%emt 0:00:24]} 27. Re2 {[%emt 0:01:13]} fxe5 {[%emt 0:01:22]} 28. Ng5+ {[%emt 0:00:25]} Kg6 {[%emt 0:00:30]} 29. f4 {[%emt 0:02:32]} h6 {[%emt 0:01:53]} 30. Ne4 {[%emt 0:00:07]} exf4 {[%emt 0:03:18]} 0-1

[Event "XVII MetLife Najdorf Open 2017"]
[Site "Warsaw"]
[Date "2017.07.15"]
[Round "7"]
[White "Aditya Mittal"]
[Black "Prince, Bajaj"]
[Result "0-1"]
[ECO "E20"]
[WhiteElo "2203"]
[BlackElo "2344"]
[Annotator "RC"]
[PlyCount "76"]
[EventDate "2017.??.??"]
[EventType "swiss"]
[EventCountry "POL"]
[SourceTitle "playchess.com"]
[Source "ChessBase"]
[SourceQuality "1"]
[TimeControl "40/5400+30:1800+30"]

1. d4 {[%emt 0:00:00]} Nf6 {[%emt 0:00:07]} 2. c4 {[%emt 0:00:00]} e6 {[%emt 0:00:05]} 3. Nc3 {[%emt 0:00:11]} Bb4 {[%emt 0:00:05]} 4. f3 {[%emt 0:00:28]} c5 {[%emt 0:00:12]} 5. d5 {[%emt 0:00:10]} d6 {[%emt 0:00:11]} 6. e4 {[%emt 0:00:08]} b5 {[%emt 0:00:08]} 7. Nge2 {[%emt 0:05:47]} exd5 {[%emt 0:10:57]} 8. cxd5 {[%emt 0:00:56]} O-O {[%emt 0:01:20]} 9. Ng3 {[%emt 0:04:08]} a6 {[%emt 0:19:47]} 10. Be2 {[%emt 0:03:08]} Nbd7 {[%emt 0:06:04]} 11. O-O {[%emt 0:04:01]} c4 {[%emt 0:05:25]} 12. Kh1 {[%emt 0:15:32]} Nc5 {[%emt 0:06:03]} 13. Be3 {[%emt 0:11:14]} Re8 {[%emt 0:05:23]} 14. Bd4 {[%emt 0:05:40]} h5 {[%emt 0:08:45]} 15. Kg1 {[%emt 0:22:02]} h4 {[%emt 0:06:57]} 16. Nh1 {[%emt 0:00:09]} Nh5 {[%emt 0:02:33]} 17. a3 {[%emt 0:09:37]} Ba5 {[%emt 0:08:49]} 18. Bxc5 {[%emt 0:00:43]} dxc5 {[%emt 0:00:08]} 19. f4 {[%emt 0:00:03]} Nf6 {[%emt 0:05:17]} 20. e5 {[%emt 0:00:20]} b4 {[%emt 0:05:28]} 21. Na4 {[%emt 0:03:47]} Nxd5 {[%emt 0:00:06]} 22. Bxc4 {[%emt 0:02:38]} Ne3 {[%emt 0:02:01]} 23. Bxf7+ {[%emt 0:04:10]} Kxf7 {[%emt 0:01:05]} 24. Qb3+ {[%emt 0:00:12]} Nd5 {[%emt 0:02:30]} 25. Rad1 {[%emt 0:01:25]} Bb7 {[%emt 0:00:20]} 26. Nxc5 {[%emt 0:01:18]} Bb6 {[%emt 0:02:53]} 27. axb4 {[%emt 0:00:06]} Bc6 {[%emt 0:00:40]} 28. Nf2 {[%emt 0:01:04]} Bxc5 {[%emt 0:00:29]} 29. bxc5 {[%emt 0:00:02]} Rb8 {[%emt 0:00:31]} 30. Qf3 {[%emt 0:02:00]} Kg8 {[%emt 0:00:34]} 31. Ne4 {[%emt 0:02:23]} Rf8 {[%emt 0:00:30]} 32. Qg4 {[%emt 0:01:29]} Qc8 {[%emt 0:00:25]} 33. Qxh4 {[%emt 0:00:56]} Ne3 {[%emt 0:00:22]} 34. Nd6 {[%emt 0:00:37]} Qe6 {[%emt 0:00:45]} 35. Rd3 {[%emt 0:00:27]} Rxb2 {[%emt 0:00:23]} 36. Rf3 {[%emt 0:00:33]} Rxg2+ 37. Kh1 {[%emt 0:00:06]} Bxf3 {[%emt 0:00:45]} 38. Rxe3 {[%emt 0:00:06]} Rg4+ {[%emt 0:00:24]} 0-1

[Event "XVII MetLife Najdorf Open 2017"]
[Site "Warsaw"]
[Date "2017.07.15"]
[Round "7"]
[White "Szustakowski, Antoni"]
[Black "Das, Sayantan"]
[Result "0-1"]
[ECO "B40"]
[WhiteElo "2171"]
[BlackElo "2399"]
[Annotator "NA RC"]
[PlyCount "78"]
[EventDate "2017.??.??"]
[EventType "swiss"]
[EventCountry "POL"]
[SourceTitle "playchess.com"]
[Source "ChessBase"]
[SourceQuality "1"]
[TimeControl "40/5400+30:1800+30"]

1. e4 {[%emt 0:00:00]} c5 {[%emt 0:00:46]} 2. Nf3 {[%emt 0:00:00]} e6 {[%emt 0:00:07]} 3. g3 {[%emt 0:00:00]} Nc6 {[%emt 0:01:01]} 4. Bg2 {[%emt 0:00:00]} Nf6 {[%emt 0:00:30]} 5. Qe2 {[%emt 0:00:00]} e5 {[%emt 0:00:31]} 6. O-O {[%emt 0:03:00]} g6 {[%emt 0:06:15]} 7. d3 {[%emt 0:17:41]} Bg7 {[%emt 0:04:28]} 8. c4 {[%emt 0:01:22]} d6 {[%emt 0:04:30]} 9. h3 {[%emt 0:02:07]} O-O {[%emt 0:01:17]} 10. Nc3 {[%emt 0:00:33]} a6 {[%emt 0:04:18]} 11. a4 {[%emt 0:14:34]} Rb8 {[%emt 0:02:25]} 12. Ne1 {[%emt 0:04:28]} b5 {[%emt 0:09:13]} 13. axb5 {[%emt 0:12:38]} Nd4 {[%emt 0:00:13]} 14. Qd1 {[%emt 0:00:01]} axb5 {[%emt 0:00:08]} 15. b3 {[%emt 0:00:25]} Ne8 {[%emt 0:11:42]} 16. Be3 {[%emt 0:07:28]} Nc7 {[%emt 0:04:15]} 17. Bxd4 {[%emt 0:05:25]} exd4 {[%emt 0:03:33]} 18. Nd5 {[%emt 0:01:14]} Nxd5 {[%emt 0:02:09]} 19. exd5 {[%emt 0:04:54]} h5 {[%emt 0:01:14]} 20. f4 {[%emt 0:02:43]} Bf5 {[%emt 0:04:51]} 21. Rf2 {[%emt 0:11:17]} Re8 {[%emt 0:02:36]} 22. g4 {[%emt 0:02:24]} hxg4 {[%emt 0:00:07]} 23. hxg4 {[%emt 0:00:01]} Bc8 {[%emt 0:03:12]} 24. g5 {[%emt 0:03:36]} Bf5 {[%emt 0:02:07]} 25. Bf3 {[%emt 0:01:22]} Re3 {[%emt 0:01:03]} 26. Qc2 {[%emt 0:02:51]} f6 {[%emt 0:02:48]} 27. Rg2 {[%emt 0:01:49]} Qe7 {[%emt 0:01:56]} 28. Qd2 {[%emt 0:00:39]} Re8 {[%emt 0:00:29]} 29. Kf2 {[%emt 0:00:26]} fxg5 {[%emt 0:01:14]} 30. fxg5 {[%emt 0:00:16]} Qe5 {[%emt 0:05:37]} 31. cxb5 {[%emt 0:00:47]} Rxf3+ {[%emt 0:02:46]} 32. Kxf3 {[%emt 0:00:53]} Bh3 {[%emt 0:01:47]} 33. Rg4 {[%emt 0:00:59]} Qxd5+ {[%emt 0:03:53]} 34. Re4 {[%emt 0:00:30]} Bf5 {[%emt 0:01:16]} 35. Qf4 {[%emt 0:00:30]} Bxe4+ {[%emt 0:01:49]} 36. dxe4 {[%emt 0:00:10]} Qxb3+ {[%emt 0:00:03]} 37. Kg4 {[%emt 0:00:15]} Be5 {[%emt 0:01:38]} 38. Qf3 {[%emt 0:00:31]} Qe6+ {[%emt 0:00:41]} 39. Kh4 {[%emt 0:00:14]} Rf8 {[%emt 0:00:11]} 0-1

[Event "XVII MetLife Najdorf Open 2017"]
[Site "Warsaw"]
[Date "2017.07.15"]
[Round "7"]
[White "Antolak, Julia"]
[Black "Karpus, Michal"]
[Result "0-1"]
[ECO "C96"]
[WhiteElo "2144"]
[BlackElo "2291"]
[Annotator "RC"]
[PlyCount "84"]
[EventDate "2017.??.??"]
[EventType "swiss"]
[EventCountry "POL"]
[SourceTitle "playchess.com"]
[Source "ChessBase"]
[SourceQuality "1"]
[TimeControl "40/5400+30:1800+30"]

1. e4 {[%emt 0:00:00]} e5 {[%emt 0:00:13]} 2. Nf3 {[%emt 0:00:00]} Nc6 {[%emt 0:00:11]} 3. Bb5 {[%emt 0:00:00]} a6 {[%emt 0:00:10]} 4. Ba4 {[%emt 0:00:00]} Nf6 {[%emt 0:00:12]} 5. O-O {[%emt 0:00:00]} Be7 {[%emt 0:00:10]} 6. Re1 {[%emt 0:00:00]} b5 {[%emt 0:00:21]} 7. Bb3 {[%emt 0:00:00]} d6 {[%emt 0:00:24]} 8. c3 {[%emt 0:00:00]} O-O {[%emt 0:00:38]} 9. h3 {[%emt 0:00:02]} Na5 {[%emt 0:00:28]} 10. Bc2 {[%emt 0:00:06]} c5 {[%emt 0:00:07]} 11. d4 {[%emt 0:00:05]} Nd7 {[%emt 0:00:28]} 12. Nbd2 {[%emt 0:01:44]} cxd4 {[%emt 0:00:31]} 13. cxd4 {[%emt 0:00:14]} Nc6 {[%emt 0:00:30]} 14. Nf1 {[%emt 0:11:10]} exd4 {[%emt 0:00:59]} 15. Nxd4 {[%emt 0:00:22]} Nxd4 {[%emt 0:00:17]} 16. Qxd4 {[%emt 0:00:07]} Ne5 {[%emt 0:00:28]} 17. f4 {[%emt 0:06:09]} Nc6 {[%emt 0:14:08]} 18. Qc3 {[%emt 0:07:58]} Bb7 {[%emt 0:04:58]} 19. Be3 {[%emt 0:08:58]} Bf6 {[%emt 0:04:47]} 20. Qd2 {[%emt 0:08:34]} Bxb2 {[%emt 0:05:17]} 21. Rad1 {[%emt 0:02:27]} Ba3 {[%emt 0:05:28]} 22. Re2 {[%emt 0:01:28]} g6 {[%emt 0:14:08]} 23. Nh2 {[%emt 0:02:37]} Rc8 {[%emt 0:07:57]} 24. Bb3 {[%emt 0:15:05]} Na5 {[%emt 0:05:45]} 25. Bd4 {[%emt 0:02:02]} Bc5 {[%emt 0:06:52]} 26. Kh1 {[%emt 0:12:12]} Nxb3 {[%emt 0:02:47]} 27. axb3 {[%emt 0:00:01]} Bxd4 {[%emt 0:01:08]} 28. Qxd4 {[%emt 0:00:05]} Qh4 {[%emt 0:00:56]} 29. Rf1 {[%emt 0:06:36]} Rce8 {[%emt 0:00:57]} 30. Kg1 {[%emt 0:01:52]} Re6 {[%emt 0:02:27]} 31. e5 {[%emt 0:05:28]} dxe5 {[%emt 0:01:18]} 32. Rxe5 {[%emt 0:00:08]} Rd8 {[%emt 0:02:09]} 33. Qb2 {[%emt 0:04:33]} Rxe5 {[%emt 0:01:11]} 34. Qxe5 {[%emt 0:00:39]} Bxg2 {[%emt 0:03:54]} 35. Kxg2 {[%emt 0:01:26]} Rd2+ {[%emt 0:00:07]} 36. Kh1 {[%emt 0:00:10]} Qxh3 {[%emt 0:01:18]} 37. Qe8+ {[%emt 0:02:10]} Kg7 {[%emt 0:00:10]} 38. Qe5+ {[%emt 0:00:02]} f6 {[%emt 0:00:53]} 39. Qc7+ {[%emt 0:00:17]} Kh6 40. Qe7 Kh5 41. Qc5+ f5 42. Qg1 Kh4 0-1

[Event "XVII MetLife Najdorf Open 2017"]
[Site "Warsaw"]
[Date "2017.07.15"]
[Round "7"]
[White "Ghadiri, Radmehr"]
[Black "Sahil, Tickoo"]
[Result "1-0"]
[ECO "D31"]
[WhiteElo "2125"]
[BlackElo "2234"]
[Annotator "NA RC"]
[PlyCount "83"]
[EventDate "2017.??.??"]
[EventType "swiss"]
[EventCountry "POL"]
[SourceTitle "playchess.com"]
[Source "ChessBase"]
[SourceQuality "1"]
[TimeControl "40/5400+30:1800+30"]

1. d4 {[%emt 0:00:00]} d5 {[%emt 0:04:23]} 2. c4 {[%emt 0:00:00]} e6 {[%emt 0:00:14]} 3. Nc3 {[%emt 0:00:00]} Be7 {[%emt 0:00:05]} 4. cxd5 {[%emt 0:00:00]} exd5 {[%emt 0:00:01]} 5. Bf4 {[%emt 0:00:17]} c6 {[%emt 0:00:02]} 6. e3 {[%emt 0:00:09]} Bf5 {[%emt 0:00:07]} 7. g4 {[%emt 0:00:05]} Be6 {[%emt 0:00:01]} 8. h4 {[%emt 0:00:08]} Nd7 {[%emt 0:00:06]} 9. g5 {[%emt 0:00:18]} h6 {[%emt 0:00:14]} 10. g6 {[%emt 0:00:06]} Ngf6 {[%emt 0:00:01]} 11. gxf7+ {[%emt 0:00:14]} Bxf7 {[%emt 0:00:02]} 12. Bd3 {[%emt 0:05:47]} Nh5 {[%emt 0:00:50]} 13. Nge2 {[%emt 0:07:37]} Bxh4 {[%emt 0:15:26]} 14. Qc2 {[%emt 0:04:06]} Qf6 {[%emt 0:00:40]} 15. O-O-O {[%emt 0:10:46]} Bxf2 {[%emt 0:12:59]} 16. Kb1 {[%emt 0:41:54]} Nxf4 {[%emt 0:45:42]} 17. Nxf4 {[%emt 0:00:18]} Bxe3 {[%emt 0:00:26]} 18. Nfxd5 {[%emt 0:16:01]} cxd5 {[%emt 0:01:22]} 19. Rde1 {[%emt 0:00:58]} O-O {[%emt 0:02:12]} 20. Rxe3 {[%emt 0:00:03]} Qf4 {[%emt 0:04:57]} 21. Reh3 {[%emt 0:02:18]} Rae8 {[%emt 0:01:09]} 22. Qg2 {[%emt 0:00:46]} Kh8 {[%emt 0:05:02]} 23. Nxd5 {[%emt 0:03:18]} Qd6 {[%emt 0:04:38]} 24. Ne3 {[%emt 0:04:10]} Rxe3 {[%emt 0:00:37]} 25. Rxe3 {[%emt 0:00:02]} Qxd4 {[%emt 0:00:57]} 26. Reh3 {[%emt 0:01:27]} Qd6 {[%emt 0:00:01]} 27. Rg1 {[%emt 0:00:49]} Rg8 {[%emt 0:00:24]} 28. Qe4 {[%emt 0:00:46]} Nf6 {[%emt 0:00:01]} 29. Qxb7 {[%emt 0:00:16]} Qe6 {[%emt 0:01:34]} 30. Rgh1 {[%emt 0:00:29]} Qxa2+ {[%emt 0:00:11]} 31. Kc1 {[%emt 0:00:02]} Qa1+ {[%emt 0:00:57]} 32. Kd2 {[%emt 0:00:42]} Qa5+ {[%emt 0:00:05]} 33. Kc1 {[%emt 0:00:28]} Qa1+ {[%emt 0:00:05]} 34. Bb1 {[%emt 0:01:05]} Qa5 {[%emt 0:01:20]} 35. Qxf7 {[%emt 0:00:51]} Qg5+ {[%emt 0:00:36]} 36. Kd1 {[%emt 0:01:07]} Qg4+ {[%emt 0:00:25]} 37. Kc2 {[%emt 0:00:32]} Qe4+ {[%emt 0:00:25]} 38. Kb3 {[%emt 0:00:24]} Rb8+ {[%emt 0:00:10]} 39. Ka2 {[%emt 0:00:09]} Qa4+ {[%emt 0:01:00]} 40. Ra3 {[%emt 0:00:00]} Qd4 {[%emt 0:00:29]} 41. Rh2 {[%emt 0:05:58]} Nd5 {[%emt 0:00:06]} 42. Rxh6+ 1-0

[Event "XVII MetLife Najdorf Open 2017"]
[Site "Warsaw"]
[Date "2017.07.15"]
[Round "7"]
[White "Domanski, Lukasz"]
[Black "Kujawski, Adam"]
[Result "1/2-1/2"]
[ECO "C28"]
[WhiteElo "2113"]
[BlackElo "2300"]
[Annotator "RC"]
[PlyCount "76"]
[EventDate "2017.??.??"]
[EventType "swiss"]
[EventCountry "POL"]
[SourceTitle "playchess.com"]
[Source "ChessBase"]
[SourceQuality "1"]
[TimeControl "40/5400+30:1800+30"]

1. e4 {[%emt 0:00:00]} e5 {[%emt 0:00:09]} 2. Bc4 {[%emt 0:00:00]} Nc6 {[%emt 0:01:40]} 3. Nc3 {[%emt 0:00:12]} Nf6 {[%emt 0:00:30]} 4. d3 {[%emt 0:00:07]} Bb4 {[%emt 0:02:34]} 5. Nge2 {[%emt 0:00:10]} d5 {[%emt 0:03:02]} 6. exd5 {[%emt 0:00:06]} Nxd5 {[%emt 0:00:22]} 7. O-O {[%emt 0:00:15]} Be6 {[%emt 0:07:15]} 8. Bxd5 {[%emt 0:00:22]} Bxd5 {[%emt 0:00:11]} 9. f4 {[%emt 0:00:30]} O-O {[%emt 0:04:27]} 10. f5 {[%emt 0:00:17]} f6 {[%emt 0:01:46]} 11. Nxd5 {[%emt 0:00:16]} Qxd5 {[%emt 0:00:25]} 12. Ng3 {[%emt 0:00:19]} Rad8 {[%emt 0:04:31]} 13. Ne4 {[%emt 0:03:05]} Ba5 {[%emt 0:04:33]} 14. Qg4 {[%emt 0:13:33]} Rd7 {[%emt 0:12:10]} 15. Kh1 {[%emt 0:07:38]} Nb4 {[%emt 0:08:22]} 16. Qe2 {[%emt 0:11:12]} Qc6 {[%emt 0:02:15]} 17. Nc3 {[%emt 0:03:38]} Rfd8 {[%emt 0:04:05]} 18. a3 {[%emt 0:04:52]} Nxc2 {[%emt 0:02:03]} 19. Qxc2 {[%emt 0:05:05]} Rxd3 {[%emt 0:00:13]} 20. Qb3+ {[%emt 0:11:00]} Kh8 {[%emt 0:01:05]} 21. Qe6 {[%emt 0:13:48]} Qxe6 {[%emt 0:01:33]} 22. fxe6 {[%emt 0:03:51]} Bxc3 {[%emt 0:01:30]} 23. bxc3 {[%emt 0:01:49]} Re8 {[%emt 0:03:38]} 24. Rb1 {[%emt 0:03:56]} b6 {[%emt 0:00:12]} 25. Bb2 {[%emt 0:02:28]} Rxe6 {[%emt 0:01:01]} 26. Rbd1 {[%emt 0:07:54]} Red6 {[%emt 0:01:44]} 27. Rxd3 {[%emt 0:00:42]} Rxd3 {[%emt 0:00:06]} 28. Kg1 {[%emt 0:02:46]} Kg8 {[%emt 0:00:55]} 29. c4 {[%emt 0:02:12]} c5 {[%emt 0:04:23]} 30. Rf2 {[%emt 0:01:37]} Kf7 {[%emt 0:01:57]} 31. Kf1 {[%emt 0:00:41]} Ke6 {[%emt 0:01:01]} 32. Ke2 {[%emt 0:00:46]} Rd7 {[%emt 0:00:10]} 33. g4 {[%emt 0:00:43]} Rd8 {[%emt 0:01:33]} 34. Rf3 {[%emt 0:00:26]} h6 {[%emt 0:07:13]} 35. h4 {[%emt 0:00:42]} Rh8 {[%emt 0:07:41]} 36. h5 {[%emt 0:00:27]} Rg8 {[%emt 0:00:39]} 37. Bc1 {[%emt 0:00:14]} g5 {[%emt 0:02:50]} 38. Bb2 {[%emt 0:00:39]} Rb8 {[%emt 0:05:36]} 1/2-1/2

[Event "XVII MetLife Najdorf Open 2017"]
[Site "Warsaw"]
[Date "2017.07.16"]
[Round "8"]
[White "Konguvel, Ponnuswamy"]
[Black "Eggink, Ryszard"]
[Result "1-0"]
[ECO "B94"]
[WhiteElo "2388"]
[BlackElo "2322"]
[Annotator "NA"]
[PlyCount "99"]
[EventDate "2017.??.??"]
[EventType "swiss"]
[EventCountry "POL"]
[SourceTitle "playchess.com"]
[Source "ChessBase"]
[SourceQuality "1"]
[TimeControl "40/5400+30:1800+30"]

1. e4 {[%emt 0:00:00]} c5 {[%emt 0:00:06]} 2. Nf3 {[%emt 0:00:00]} d6 {[%emt 0:00:01]} 3. d4 {[%emt 0:00:07]} cxd4 {[%emt 0:00:02]} 4. Nxd4 {[%emt 0:00:06]} Nf6 {[%emt 0:00:05]} 5. Nc3 {[%emt 0:00:04]} a6 {[%emt 0:00:03]} 6. Bg5 {[%emt 0:00:25]} Nbd7 {[%emt 0:00:01]} 7. Bc4 {[%emt 0:00:46]} Qa5 {[%emt 0:00:10]} 8. Qd2 {[%emt 0:00:44]} e6 {[%emt 0:00:05]} 9. O-O-O {[%emt 0:03:18]} b5 {[%emt 0:02:21]} 10. Bb3 {[%emt 0:13:25]} Bb7 {[%emt 0:05:13]} 11. Rhe1 {[%emt 0:00:36]} O-O-O {[%emt 0:04:01]} 12. a3 {[%emt 0:00:44]} Be7 {[%emt 0:07:10] B94: Sicilian Najdorf: 6 Bg5 Nbd7} 13. Kb1 {[%emt 0:06:10]} Kb8 {[%emt 0:00:12]} 14. f3 {[%emt 0:00:20]} h6 {[%emt 0:02:29]} (14... Rc8 15. Be3 h5 16. Ba2 h4 17. Bf2 Ne5 18. Qe3 Rxc3 19. Qxc3 Qxc3 20. bxc3 {1-0 (73) Vocaturo,D (2606)-Salinas Herrera,P (2466) Antofagasta 2017}) 15. Be3 {[%emt 0:02:07]} g5 $146 {[%emt 0:01:40]} ({Predecessor:} 15... Ne5 16. Na2 Qxd2 17. Bxd2 Nfd7 18. Bb4 Nc5 19. Nc1 g5 20. Ba2 {0-1 (41) Sherwin,J-Reshevsky,S New York 1959}) 16. Qf2 {[%emt 0:30:33]} Rc8 {[%emt 0:02:58]} 17. Nde2 {[%emt 0:03:44]} Qc7 {[%emt 0:07:22]} 18. Rd2 {[%emt 0:05:06]} Ne5 {[%emt 0:07:53]} 19. Bb6 {[%emt 0:03:47]} Qc6 {[%emt 0:00:36]} 20. Ba5 {[%emt 0:02:02]} Bd8 {[%emt 0:13:29]} 21. Bxd8 {[%emt 0:05:21]} Rhxd8 {[%emt 0:00:09]} 22. Red1 {[%emt 0:00:03]} Rd7 {[%emt 0:03:41]} 23. Qg3 {[%emt 0:04:45]} Rcd8 {[%emt 0:06:33]} 24. Rd4 {[%emt 0:02:06]} Qc5 {[%emt 0:02:14]} 25. Qh3 {[%emt 0:07:28]} h5 {[%emt 0:02:49]} 26. Qg3 {[%emt 0:00:43]} Nc6 {[%emt 0:04:34]} 27. R4d2 {[%emt 0:00:01]} h4 {[%emt 0:02:56]} 28. Qe1 {[%emt 0:00:08]} Ne5 {[%emt 0:00:06]} 29. Nd4 {[%emt 0:01:05]} Ng6 {[%emt 0:04:23]} 30. a4 {[%emt 0:03:30]} b4 {[%emt 0:01:12]} 31. Nce2 {[%emt 0:00:54]} d5 {[%emt 0:04:52]} 32. exd5 {[%emt 0:01:51]} Nxd5 {[%emt 0:00:02]} 33. Bxd5 {[%emt 0:00:24]} Rxd5 {[%emt 0:02:27]} 34. Nb3 {[%emt 0:00:11]} Qb6 {[%emt 0:00:58]} 35. a5 {[%emt 0:01:54]} Qb5 {[%emt 0:00:06]} 36. Rxd5 {[%emt 0:01:29]} Rxd5 {[%emt 0:00:01]} 37. Rxd5 {[%emt 0:00:10]} Bxd5 {[%emt 0:00:08]} 38. Ned4 {[%emt 0:01:05]} Qc4 {[%emt 0:00:17]} 39. Qe3 {[%emt 0:00:28]} f6 {[%emt 0:01:27]} 40. g3 {[%emt 0:00:00]} hxg3 {[%emt 0:09:35]} 41. hxg3 {[%emt 0:01:26]} Ne5 {[%emt 0:00:52]} 42. f4 {[%emt 0:04:46]} gxf4 {[%emt 0:08:14]} 43. Qxf4 {[%emt 0:02:00]} Qc7 {[%emt 0:06:42]} (43... Kc7 $16 {was called for.}) 44. Qxf6 {[%emt 0:00:15]} Qd6 {[%emt 0:02:24] [#]} 45. Nf5 $1 {[%emt 0:04:58]} Qc7 {[%emt 0:00:59]} 46. Qf8+ {[%emt 0:00:20]} Ka7 {[%emt 0:00:46]} 47. Nfd4 {[%emt 0:01:35]} Nd7 {[%emt 0:02:57]} 48. Qe7 {[%emt 0:02:50]} e5 {[%emt 0:04:36]} 49. Qxb4 $18 {[%emt 0:02:21]} Be4 {[%emt 0:01:50]} 50. Nb5+ {[%emt 0:00:19]} 1-0

[Event "XVII MetLife Najdorf Open 2017"]
[Site "Warsaw"]
[Date "2017.07.16"]
[Round "8"]
[White "Deszczynski, Adam"]
[Black "Pranav Vijay"]
[Result "1/2-1/2"]
[ECO "E16"]
[WhiteElo "2380"]
[BlackElo "2265"]
[Annotator "ChessBase"]
[PlyCount "126"]
[EventDate "2017.??.??"]
[EventType "swiss"]
[EventCountry "POL"]
[SourceTitle "playchess.com"]
[Source "ChessBase"]
[SourceQuality "1"]
[TimeControl "40/5400+30:1800+30"]

1. d4 {[%emt 0:00:00]} Nf6 {[%emt 0:00:07]} 2. c4 {[%emt 0:00:10]} e6 {[%emt 0:00:07]} 3. Nf3 {[%emt 0:01:40]} b6 {[%emt 0:00:12]} 4. g3 {[%emt 0:01:38]} Bb7 {[%emt 0:00:29]} 5. Bg2 {[%emt 0:01:02]} Bb4+ {[%emt 0:00:13]} 6. Bd2 {[%emt 0:05:40]} Be7 {[%emt 0:00:17]} 7. Nc3 {[%emt 0:00:56]} O-O {[%emt 0:00:20]} 8. O-O {[%emt 0:01:24]} d5 {[%emt 0:00:16]} 9. Ne5 {[%emt 0:05:57]} c6 {[%emt 0:00:34]} 10. Bf4 {[%emt 0:07:56]} Nbd7 {[%emt 0:02:07]} 11. Qa4 {[%emt 0:09:31]} Nxe5 {[%emt 0:03:57]} 12. Bxe5 {[%emt 0:00:29]} a6 {[%emt 0:05:32]} 13. Bxf6 {[%emt 0:03:33]} Bxf6 {[%emt 0:00:16]} 14. cxd5 {[%emt 0:00:48]} exd5 {[%emt 0:01:11]} 15. Rfd1 {[%emt 0:01:10]} b5 {[%emt 0:09:04]} 16. Qb3 {[%emt 0:03:30]} Qb6 {[%emt 0:00:51]} 17. e3 {[%emt 0:03:07]} Qa7 {[%emt 0:05:32]} 18. Ne2 {[%emt 0:06:38]} a5 {[%emt 0:03:34]} 19. Nf4 {[%emt 0:06:04]} b4 {[%emt 0:02:10]} 20. Rac1 {[%emt 0:01:43]} Be7 {[%emt 0:06:10]} 21. Qa4 {[%emt 0:01:10]} Qb6 {[%emt 0:16:06]} 22. Nd3 {[%emt 0:03:37]} Bd6 {[%emt 0:00:41]} 23. Nc5 {[%emt 0:01:19]} Bc8 {[%emt 0:00:31]} 24. Nb3 {[%emt 0:00:43]} Bb7 {[%emt 0:09:31]} 25. Bh3 {[%emt 0:01:19]} f5 {[%emt 0:08:38]} 26. Rc2 {[%emt 0:03:05]} Rf6 {[%emt 0:04:21]} 27. Rdc1 {[%emt 0:01:32]} Bf8 {[%emt 0:00:21]} 28. Nc5 {[%emt 0:05:44]} Bxc5 {[%emt 0:00:09]} 29. Rxc5 {[%emt 0:00:11]} g6 {[%emt 0:01:43]} 30. Bf1 {[%emt 0:02:54]} Rd6 {[%emt 0:02:10]} 31. Bd3 {[%emt 0:02:07]} Kg7 {[%emt 0:00:56]} 32. h4 {[%emt 0:01:27]} Qd8 {[%emt 0:03:05]} 33. a3 {[%emt 0:01:34]} Qb6 {[%emt 0:02:00]} 34. Kg2 {[%emt 0:02:40]} h5 {[%emt 0:05:49]} 35. Bf1 {[%emt 0:03:55]} Kh8 {[%emt 0:01:57]} 36. Kg1 {[%emt 0:00:32]} Kg7 {[%emt 0:01:32]} 37. Rd1 {[%emt 0:02:44]} Kh7 {[%emt 0:00:35]} 38. Rd3 {[%emt 0:02:18]} Ba6 {[%emt 0:03:32]} 39. Rxa5 {[%emt 0:01:25]} Rdd8 {[%emt 0:00:52]} 40. Rb3 {[%emt 0:00:00]} Bb5 {[%emt 0:00:41]} 41. Rxb5 {[%emt 0:00:56]} cxb5 {[%emt 0:01:13]} 42. Qxb4 {[%emt 0:00:12]} Qf6 {[%emt 0:03:54]} 43. Rc3 {[%emt 0:04:51]} Rac8 {[%emt 0:02:08]} 44. Rxc8 {[%emt 0:03:52]} Rxc8 {[%emt 0:00:11]} 45. Qxb5 {[%emt 0:00:31]} Qd6 {[%emt 0:01:13]} 46. b4 {[%emt 0:04:01]} Kh6 {[%emt 0:08:17]} 47. a4 {[%emt 0:10:49]} Rc1 {[%emt 0:08:36]} 48. a5 {[%emt 0:02:04]} Rb1 {[%emt 0:02:30]} 49. Qe8 {[%emt 0:03:49]} Kh7 {[%emt 0:00:28]} 50. Qf7+ {[%emt 0:03:48]} Kh8 {[%emt 0:00:31]} 51. b5 {[%emt 0:02:26]} Qb4 {[%emt 0:00:53]} 52. Qe8+ {[%emt 0:01:48]} Kh7 {[%emt 0:00:05]} 53. Qd7+ {[%emt 0:00:34]} Kh8 {[%emt 0:00:43]} 54. Qc8+ {[%emt 0:01:18]} Kh7 {[%emt 0:00:14]} 55. Qb7+ {[%emt 0:00:02]} Kh8 {[%emt 0:00:09]} 56. Qb8+ {[%emt 0:02:45]} Kh7 {[%emt 0:00:04]} 57. Qc7+ {[%emt 0:00:08]} Kh8 {[%emt 0:00:01]} 58. Qd8+ {[%emt 0:00:18]} Kh7 {[%emt 0:00:01]} 59. Qd7+ {[%emt 0:01:07]} Kh8 {[%emt 0:00:01]} 60. Qe8+ {[%emt 0:00:37]} Kh7 {[%emt 0:00:00]} 61. Qf7+ {[%emt 0:00:16]} Kh8 {[%emt 0:00:00]} 62. Qf6+ {[%emt 0:00:32]} Kh7 {[%emt 0:00:06]} 63. Qf7+ {[%emt 0:00:46]} Kh8 1/2-1/2